bitfinex-derivatives/quotes_SOLF0:USTF0_20240908
["timestamp","ask_amount","ask_price","bid_price","bid_amount"]
[1725822773461,3.1024,128.94,128.91,3.1029]
[1725822776472,3.85788574,128.97,128.91,8.35]
[1725822776665,119.17310275,128.98,128.9,3.95577]
[1725822776866,123.05044001,128.98,128.93,8.35]
[1725822778275,3.1018,128.96,128.93,11.4525]
[1725822779277,3.1017,128.97,128.93,11.4525]
[1725822781577,3.1017,128.97,128.93,8.35]
[1725822784585,3.1017,128.97,128.93,11.4526]
[1725822785380,3.1017,128.97,128.94,8.35]
[1725822786878,3.1018,128.96,128.94,8.35]
[1725822793086,123.05044001,128.98,128.94,8.35]
[1725822794188,3.1018,128.97,128.94,8.35]
[1725822802595,123.05044001,128.98,128.92,6.93232215]
[1725822802794,123.05044001,128.98,128.94,8.35]
[1725822803394,3.1019,128.96,128.94,8.35]
[1725822820813,3.1022,128.95,128.91,7.2068]
[1725822821113,123.05044001,128.98,128.93,8.35]
[1725822821310,123.05044001,128.98,128.94,8.35]
[1725822822006,2.604,129.01,128.92,3.93345256]
[1725822822204,14.75363527,129.01,128.95,8.35]
[1725822822507,10.954,129.01,128.95,8.35]
[1725822823106,14.7547989,129.01,128.95,8.35]
[1725822823307,3.1017,128.97,128.95,8.35]
[1725822838922,3.1012,128.99,128.96,8.35]
[1725822839123,3.1012,128.99,128.98,8.35]
[1725822839624,3.8007989,129.01,128.98,8.35]
[1725822839625,3.101,129.0,128.98,8.35]
[1725822840417,3.1007,129.01,128.98,8.35]
[1725822840612,111.79522438,129.02,128.95,4.113]
[1725822840613,111.79522438,129.02,129.0,8.35]
[1725822841823,23.28,129.08,129.0,8.35]
[1725822842019,8.63500642,129.07,129.0,8.35]
[1725822842220,0.28500642,129.06,129.0,8.35]
[1725822842522,3.1003,129.03,129.0,8.35]
[1725822847629,3.1004,129.02,129.0,8.35]
[1725822848029,3.1004,129.02,128.99,3.1011]
[1725822848324,3.1004,129.02,129.0,8.35]
[1725822851026,3.1004,129.02,128.95,4.113]
[1725822851027,3.101,129.0,128.95,4.113]
[1725822851227,3.78507377,129.02,128.95,4.113]
[1725822851429,135.55665329,129.06,128.95,12.463]
[1725822851430,8.35,129.01,128.95,12.463]
[1725822851627,135.55665329,129.06,128.95,12.463]
[1725822851628,3.1014,128.98,128.95,12.463]
[1725822852027,3.1014,128.98,128.95,11.065]
[1725822852228,3.1014,128.98,128.95,8.35]
[1725822864232,3.1018,128.97,128.94,151.83693662]
[1725822864432,3.1018,128.97,128.94,160.18693662]
[1725822865441,3.1018,128.97,128.94,163.28923662]
[1725822866035,3.1018,128.97,128.95,8.35]
[1725822868645,3.1018,128.97,128.94,154.93923662]
[1725822869046,3.1018,128.97,128.95,8.35]
[1725822877852,3.1015,128.98,128.95,11.4521]
[1725822878055,3.1015,128.98,128.96,8.35]
[1725822885655,3.1012,128.99,128.96,8.35]
[1725822891172,3.1012,128.99,128.95,3.1021]
[1725822891361,3.1012,128.99,128.96,8.35]
[1725822900872,3.1012,128.99,128.96,11.4518]
[1725822901266,3.1008,129.01,128.98,8.35]
[1725822902377,3.1009,129.0,128.98,8.35]
[1725822907677,3.1009,129.0,128.97,3.1015]
[1725822907878,3.1011,128.99,128.96,8.35]
[1725822908083,8.35,129.03,128.96,8.35]
[1725822908383,3.101,129.0,128.96,11.4518]
[1725822909475,3.101,129.0,128.98,8.35]
[1725822927486,3.1011,128.99,128.95,3.102]
[1725822927692,3.1011,128.99,128.96,8.35]
[1725822928197,3.1014,128.98,128.96,8.35]
[1725822928403,3.1014,128.98,128.95,8.35]
[1725822929199,3.1016,128.97,128.95,8.35]
[1725822931597,3.1014,128.98,128.96,8.35]
[1725822931801,5.81759231,129.05,128.98,8.35]
[1725822931991,5.81759231,129.05,129.02,8.35]
[1725822932191,112.27665329,129.06,129.03,8.35]
[1725822932399,3.0997,129.05,129.04,8.35]
[1725822933607,3.0997,129.05,129.03,8.35]
[1725822937099,3.0999,129.04,129.03,8.35]
[1725822937315,3.86109647,129.08,129.03,8.35]
[1725822937507,1.3511,129.1,129.01,3.86885279]
[1725822937508,0.2849624,129.07,129.05,8.35]
[1725822937812,8.35,129.07,129.02,8.35]
[1725822938301,3.1004,129.02,129.01,8.35]
[1725822940097,3.1006,129.01,128.96,3.1018]
[1725822940396,3.1006,129.01,128.94,155.75581768]
[1725822940397,3.1006,129.01,128.99,8.35]
[1725822941404,3.1005,129.02,129.0,8.35]
[1725822944603,29.09614623,129.09,129.0,8.35]
[1725822944803,0.28499632,129.08,129.05,8.35]
[1725822945104,0.28499632,129.07,129.05,8.35]
[1725822945308,5.14285831,129.1,129.05,8.35]
[1725822945509,3.0994,129.06,129.05,8.35]
[1725822946407,3.0994,129.06,129.04,8.35]
[1725822947010,13.49285831,129.1,128.99,2.7708]
[1725822947011,3.0993,129.07,129.05,8.35]
[1725822947707,3.0993,129.07,128.99,2.7708]
[1725822947708,3.0993,129.07,129.06,8.35]
[1725822948798,3.0991,129.08,129.06,8.35]
[1725822951898,3.0992,129.07,129.03,3.1001]
[1725822952104,3.0992,129.07,129.05,8.35]
[1725822953707,3.0992,129.07,129.06,8.35]
[1725822954112,3.93922951,129.09,129.02,6.92752269]
[1725822954314,8.35,129.12,129.05,8.35]
[1725822954506,0.28494515,129.11,129.05,8.35]
[1725822954814,4.13774725,129.11,129.05,8.35]
[1725822955013,3.0994,129.07,129.05,8.35]
[1725822958912,3.0994,129.07,129.03,3.1002]
[1725822959112,3.8358394,129.1,129.06,8.35]
[1725822959319,10.9712,129.14,129.09,8.35]
[1725822959517,0.28489184,129.13,129.09,8.35]
[1725822959717,4.06880131,129.13,129.09,8.35]
[1725822959911,3.0985,129.1,129.09,8.35]
[1725822960719,3.0985,129.1,129.08,8.35]
[1725822961215,3.0985,129.1,129.04,2.6257]
[1725822961216,3.0985,129.1,129.06,3.0994]
[1725822961723,3.0988,129.09,129.08,8.35]
[1725822968429,3.0986,129.1,129.08,8.35]
[1725822970128,3.0986,129.1,129.06,3.0994]
[1725822970434,3.0986,129.1,129.09,8.35]
[1725822971434,3.0983,129.11,129.09,8.35]
[1725822971631,7.10627262,129.16,129.04,2.6257]
[1725822971632,1.2923,129.16,129.1,8.35]
[1725822971838,121.43203846,129.17,129.12,8.35]
[1725822971839,0.28482964,129.15,129.12,8.35]
[1725822972027,3.38252964,129.14,129.12,8.35]
[1725822972227,3.0977,129.14,129.12,8.35]
[1725822972834,3.0974,129.15,129.12,8.35]
[1725822973136,3.0974,129.15,129.09,1.2788]
[1725822973137,3.0974,129.15,129.14,8.35]
[1725822973338,3.38221035,129.15,129.14,8.35]
[1725822973739,3.0974,129.15,129.14,8.35]
[1725822981949,3.0974,129.15,129.11,3.0982]
[1725822981950,3.0976,129.14,129.12,8.35]
[1725822983446,3.0979,129.13,129.1,6.50227342]
[1725822983649,12.23798655,129.16,129.1,8.35]
[1725822983844,0.28479432,129.15,129.1,8.35]
[1725822984753,3.89302037,129.14,129.1,8.35]
[1725822985148,8.35,129.16,129.1,8.35]
[1725822985347,3.0981,129.12,129.1,8.35]
[1725822988249,3.95964056,129.14,129.1,8.35]
[1725822988540,8.35,129.15,129.1,8.35]
[1725822988541,0.28483846,129.13,129.1,8.35]
[1725822988750,3.0982,129.11,129.1,8.35]
[1725822988950,8.35,129.15,129.05,1.3378]
[1725822988951,12.20479621,129.15,129.05,1.3378]
[1725822989151,0.28483841,129.14,129.1,8.35]
[1725822991554,3.0982,129.11,129.1,8.35]
[1725822994559,12.20479621,129.15,129.05,5.16044063]
[1725822994560,3.0985,129.1,129.09,8.35]
[1725822994746,8.35,129.14,129.05,5.16044063]
[1725822995058,8.63482658,129.13,129.07,8.35]
[1725822995357,8.35,129.14,129.07,8.35]
[1725822995658,0.28482648,129.13,129.07,8.35]
[1725822996354,3.0989,129.09,129.07,8.35]
[1725822998555,102.9393557,129.16,129.07,8.35]
[1725822998758,8.35,129.14,129.07,8.35]
[1725822998954,3.0987,129.1,129.07,8.35]
[1725823001253,3.0987,129.09,129.07,8.35]
[1725823003261,3.099,129.08,129.07,8.35]
[1725823005267,3.91669895,129.09,129.05,1.3378]
[1725823005562,8.35,129.11,129.04,11.0685]
[1725823005768,3.0997,129.05,129.04,8.35]
[1725823006064,3.90623789,129.06,129.01,8.35]
[1725823006257,8.35,129.06,129.01,8.35]
[1725823006458,3.86400619,129.05,129.01,8.35]
[1725823006659,8.35,129.06,128.99,1.3697]
[1725823007058,3.1005,129.02,128.99,1.3697]
[1725823007268,3.1005,129.02,129.0,8.35]
[1725823009065,3.1005,129.02,129.01,8.35]
[1725823009254,3.1002,129.03,129.01,8.35]
[1725823012371,3.1002,129.03,128.99,4.4708]
[1725823012372,3.1,129.04,129.02,8.35]
[1725823013868,1.2858,129.09,129.03,8.35]
[1725823014165,4.13988878,129.08,129.03,8.35]
[1725823014366,3.91038064,129.07,129.03,8.35]
[1725823014669,3.79835646,129.07,129.03,8.35]
[1725823014868,3.0997,129.06,129.03,8.35]
[1725823015169,3.82045119,129.07,129.03,8.35]
[1725823015470,3.0997,129.05,129.03,8.35]
[1725823021774,2.6954,129.12,129.03,8.35]
[1725823021979,0.28487581,129.11,129.06,8.35]
[1725823022375,3.0989,129.09,129.06,8.35]
[1725823022575,1.2834,129.14,129.08,8.35]
[1725823022883,0.28485956,129.13,129.08,8.35]
[1725823023077,3.0985,129.1,129.08,8.35]
[1725823025378,3.0985,129.1,129.09,8.35]
[1725823025586,3.0983,129.11,129.09,8.35]
[1725823031889,8.35,129.12,129.06,12.2538]
[1725823032091,8.35,129.11,129.06,12.2538]
[1725823032391,3.099,129.08,129.06,12.2538]
[1725823035887,3.099,129.08,129.06,8.35]
[1725823036102,8.35,129.07,128.97,147.25850218]
[1725823036389,4.0551,129.1,129.01,8.35]
[1725823036390,3.95613763,129.08,129.01,8.35]
[1725823036592,3.0999,129.05,129.01,8.35]
[1725823037097,3.8681804,129.07,129.01,8.35]
[1725823038297,3.0999,129.04,129.01,8.35]
[1725823040198,3.1002,129.03,129.01,8.35]
[1725823041601,8.35,129.06,129.0,11.0438]
[1725823042196,8.35,129.05,129.0,11.0438]
[1725823042504,12.19177067,129.07,129.01,8.35]
[1725823042700,8.35,129.07,129.01,8.35]
[1725823042894,4.0551,129.1,129.01,8.35]
[1725823043100,8.35,129.08,129.01,8.35]
[1725823043403,3.1001,129.04,129.01,8.35]
[1725823043609,3.1001,129.04,129.02,8.35]
[1725823046506,3.1001,129.04,129.01,8.35]
[1725823054206,8.35,129.11,129.03,8.35]
[1725823054504,3.099,129.08,129.05,8.35]
[1725823056101,3.099,129.08,129.03,6.98295913]
[1725823056415,3.0994,129.07,129.04,8.35]
[1725823058206,3.95171291,129.09,129.04,8.35]
[1725823058407,8.35,129.1,129.04,8.35]
[1725823058811,3.0994,129.07,129.04,8.35]
[1725823062017,3.0995,129.06,129.04,8.35]
[1725823067223,3.0997,129.05,129.01,3.1006]
[1725823067521,3.0997,129.05,129.03,8.35]
[1725823071318,3.0999,129.04,129.03,8.35]
[1725823071524,8.35,129.07,129.02,8.35]
[1725823072127,3.1,129.04,129.02,8.35]
[1725823074538,12.26102154,129.06,129.01,8.35]
[1725823075437,3.1003,129.03,129.01,8.35]
[1725823077035,3.1004,129.02,129.01,8.35]
[1725823080244,3.1003,129.03,129.01,8.35]
[1725823080444,3.1003,129.03,129.02,8.35]
[1725823082145,3.1003,129.03,129.0,7.081]
[1725823082444,3.1004,129.02,129.0,12.3302]
[1725823083740,3.1002,129.03,129.01,8.35]
[1725823087740,3.1,129.04,129.01,8.35]
[1725823089848,3.1001,129.04,129.01,8.35]
[1725823100953,3.1001,129.04,129.0,7.081]
[1725823101254,3.1001,129.04,129.01,8.35]
[1725823108144,12.17974955,129.06,128.99,3.91752577]
[1725823108345,8.35,129.02,128.97,155.60850218]
[1725823108556,8.35,129.02,128.95,8.35]
[1725823108855,8.35,129.01,128.95,8.35]
[1725823110161,3.1013,128.99,128.95,8.35]
[1725823113161,3.1014,128.98,128.95,8.35]
[1725823116458,8.35,129.01,128.95,8.35]
[1725823116459,3.1016,128.97,128.95,8.35]
[1725823117059,3.1016,128.97,128.94,3.1023]
[1725823117261,3.1016,128.97,128.95,8.35]
[1725823120066,3.1016,128.97,128.94,3.1023]
[1725823120268,3.1016,128.97,128.95,8.35]
[1725823122770,8.35,129.01,128.95,8.35]
[1725823123171,8.35,128.99,128.93,11.4525]
[1725823123367,3.1017,128.97,128.93,11.4525]
[1725823125374,3.1023,128.95,128.91,104.18637721]
[1725823125678,3.1023,128.95,128.92,8.35]
[1725823125879,3.1023,128.94,128.92,8.35]
[1725823126376,3.1036,128.89,128.84,3.1047]
[1725823126568,8.35,128.93,128.87,8.35]
[1725823126775,12.23320199,128.93,128.87,3.84984981]
[1725823127269,12.23320199,128.93,128.85,3.9658]
[1725823127270,8.35,128.92,128.85,3.9658]
[1725823127480,8.35,128.91,128.84,3.93516934]
[1725823127666,8.35,128.91,128.84,8.35]
[1725823127667,3.1042,128.87,128.84,8.35]
[1725823128481,3.1038,128.88,128.84,8.35]
[1725823129283,138.98750175,128.93,128.87,8.35]
[1725823129482,147.33750175,128.93,128.87,8.35]
[1725823131382,3.1032,128.91,128.87,8.35]
[1725823131773,147.33750175,128.93,128.87,8.35]
[1725823132668,3.1032,128.91,128.87,8.35]
[1725823134076,3.1032,128.91,128.86,7.06298609]
[1725823134276,3.1032,128.91,128.87,8.35]
[1725823134582,3.1033,128.9,128.87,8.35]
[1725823136478,3.1045,128.86,128.81,3.1053]
[1725823136687,8.35,128.88,128.81,8.35]
[1725823137185,3.92627085,128.87,128.81,12.22698874]
[1725823137480,3.92627085,128.87,128.82,3.1052]
[1725823137481,3.1044,128.86,128.82,3.1052]
[1725823138282,3.1045,128.85,128.81,6.98248874]
[1725823138478,3.1045,128.85,128.81,15.33248874]
[1725823140381,1.4047,128.91,128.83,8.35]
[1725823140581,12.1617236,128.9,128.84,8.35]
[1725823141383,8.35,128.9,128.84,8.35]
[1725823141783,3.1037,128.89,128.85,3.1045]
[1725823141979,3.1037,128.89,128.84,8.35]
[1725823142586,3.1037,128.89,128.84,11.4546]
[1725823144189,3.1038,128.88,128.84,3.1046]
[1725823144495,8.35,128.9,128.84,8.35]
[1725823144696,3.1039,128.88,128.84,8.35]
[1725823145096,3.1039,128.88,128.84,11.4547]
[1725823145693,8.35,128.9,128.84,11.4547]
[1725823145694,3.104,128.87,128.84,11.4547]
[1725823145999,3.82384908,128.91,128.84,11.4547]
[1725823146203,3.1039,128.88,128.84,11.4547]
[1725823146995,3.1037,128.89,128.85,3.1044]
[1725823147193,8.35,128.9,128.85,3.1044]
[1725823148004,3.1038,128.88,128.84,11.4546]
[1725823149103,8.35,128.9,128.84,11.4546]
[1725823149606,8.35,128.9,128.84,3.1046]
[1725823149902,8.35,128.9,128.84,11.4546]
[1725823150103,3.1039,128.88,128.85,11.4545]
[1725823150505,3.1039,128.88,128.85,8.35]
[1725823151503,3.1036,128.89,128.85,8.35]
[1725823151705,12.18072027,128.91,128.85,11.4543]
[1725823151913,8.35,128.9,128.84,3.84585179]
[1725823152102,8.35,128.9,128.83,8.35]
[1725823152302,8.35,128.9,128.84,7.01255052]
[1725823152712,3.1039,128.88,128.84,7.01255052]
[1725823153707,3.104,128.87,128.84,7.01255052]
[1725823156911,3.1039,128.88,128.84,15.36255052]
[1725823157306,3.1039,128.88,128.85,11.4544]
[1725823159209,3.1039,128.88,128.84,6.89573629]
[1725823159410,3.1039,128.88,128.84,15.24573629]
[1725823162517,8.35,128.91,128.84,12.14113629]
[1725823162722,9.6335,128.91,128.84,12.14113629]
[1725823163208,3.1039,128.88,128.84,15.24573629]
[1725823167926,3.1039,128.88,128.84,6.89573629]
[1725823168126,3.104,128.87,128.84,15.24573629]
[1725823168318,3.104,128.87,128.84,11.4546]
[1725823168517,3.1044,128.86,128.81,1.3259]
[1725823168717,3.1044,128.86,128.82,8.35]
[1725823169116,3.1044,128.86,128.82,11.4551]
[1725823170222,3.1046,128.85,128.82,3.1051]
[1725823175127,3.1046,128.85,128.81,9.6759]
[1725823175814,8.35,128.84,128.8,2.6759]
[1725823176824,3.1051,128.83,128.8,2.6759]
[1725823181325,3.1051,128.83,128.8,5.7815]
[1725823188532,3.1051,128.83,128.8,2.6759]
[1725823190333,1.2835,128.91,128.8,2.6759]
[1725823190334,3.1049,128.84,128.8,14.1315]
[1725823192826,3.105,128.83,128.8,14.1315]
[1725823194637,3.105,128.83,128.8,2.6759]
[1725823196237,3.105,128.83,128.79,15.427333]
[1725823204945,3.1052,128.82,128.79,7.077333]
[1725823205839,8.35,128.81,128.75,8.35]
[1725823206249,3.1059,128.8,128.76,3.1065]
[1725823207932,3.1059,128.8,128.76,11.4565]
[1725823208244,3.1059,128.8,128.77,3.1064]
[1725823209047,11.4556,128.81,128.77,3.1064]
[1725823212650,11.4556,128.81,128.78,3.1062]
[1725823215641,3.1056,128.81,128.78,3.1062]
[1725823217549,11.4556,128.81,128.78,3.1062]
[1725823217749,8.35,128.81,128.76,3.1064]
[1725823217945,2.7008,128.84,128.71,12.18576074]
[1725823217946,3.9903,128.84,128.71,12.18576074]
[1725823218249,8.35,128.8,128.73,8.35]
[1725823218551,11.4558,128.8,128.74,8.35]
[1725823218953,3.1058,128.8,128.75,8.35]
[1725823219145,3.9903,128.84,128.77,8.35]
[1725823219146,8.35,128.82,128.77,8.35]
[1725823219639,3.1057,128.8,128.76,3.1066]
[1725823220845,3.9903,128.84,128.73,8.35]
[1725823220846,8.35,128.78,128.73,8.35]
[1725823221053,8.35,128.78,128.72,1.3169]
[1725823221054,8.35,128.77,128.71,2.6935]
[1725823221256,8.35,128.77,128.71,11.0435]
[1725823221657,8.35,128.77,128.73,3.1072]
[1725823221952,12.24411124,128.77,128.73,3.1072]
[1725823222152,8.35,128.77,128.74,3.107]
[1725823223054,11.4565,128.77,128.74,3.107]
[1725823225357,11.4567,128.76,128.73,3.1073]
[1725823225559,11.4567,128.76,128.7,8.35]
[1725823226055,11.4567,128.76,128.72,3.1075]
[1725823228063,3.1071,128.74,128.71,3.1078]
[1725823228263,8.35,128.74,128.69,8.35]
[1725823229563,11.4572,128.74,128.71,3.1079]
[1725823232657,3.97187912,128.77,128.72,8.35]
[1725823232856,3.97187912,128.77,128.65,6.51230818]
[1725823232857,3.9974,128.79,128.73,8.35]
[1725823233072,3.106,128.79,128.75,3.1068]
[1725823233263,175.77400844,128.8,128.74,8.35]
[1725823233461,167.42400844,128.8,128.74,8.35]
[1725823233762,167.42400844,128.8,128.75,8.35]
[1725823234266,167.42400844,128.8,128.77,8.35]
[1725823234460,170.52970844,128.8,128.77,8.35]
[1725823234656,170.52970844,128.8,128.76,3.1066]
[1725823235662,167.42400844,128.8,128.75,12.14505904]
[1725823236458,175.77400844,128.8,128.74,2.6886]
[1725823236958,3.1063,128.78,128.74,5.7957]
[1725823241155,3.1068,128.76,128.72,3.1076]
[1725823243271,3.1068,128.76,128.72,7.01974851]
[1725823246478,3.1068,128.76,128.72,15.36974851]
[1725823252869,3.1068,128.76,128.72,7.01974851]
[1725823253073,3.1068,128.76,128.72,15.36974851]
[1725823258868,3.1065,128.77,128.72,12.26214851]
[1725823259067,3.1065,128.77,128.73,8.35]
[1725823259476,3.1065,128.77,128.74,3.1071]
[1725823260073,3.1065,128.77,128.72,3.87857364]
[1725823260379,3.1065,128.77,128.73,11.4574]
[1725823260575,3.1062,128.78,128.74,8.35]
[1725823260873,3.1062,128.78,128.74,11.457]
[1725823265275,3.106,128.79,128.75,3.1068]
[1725823265878,170.52980844,128.8,128.76,3.1066]
[1725823266977,170.52980844,128.8,128.76,11.4566]
[1725823267684,170.52980844,128.8,128.77,3.1064]
[1725823268285,170.52980844,128.8,128.76,3.1066]
[1725823268485,3.106,128.79,128.76,3.1066]
[1725823270286,170.52980844,128.8,128.76,3.1066]
[1725823270485,167.42400844,128.8,128.77,3.1062]
[1725823270984,170.52980844,128.8,128.77,3.1062]
[1725823271374,170.52980844,128.8,128.76,11.4566]
[1725823276192,3.1059,128.79,128.76,11.4566]
[1725823286901,3.1062,128.78,128.75,4.4367]
[1725823287102,3.94679611,128.78,128.74,2.768]
[1725823287401,8.35,128.78,128.72,3.88854368]
[1725823287587,8.35,128.77,128.71,3.1077]
[1725823287792,8.35,128.77,128.7,8.35]
[1725823287989,8.35,128.76,128.7,8.35]
[1725823288294,8.35,128.76,128.68,3.9581]
[1725823288295,3.79572815,128.75,128.68,3.9581]
[1725823288602,3.1073,128.74,128.7,11.4581]
[1725823289699,3.1073,128.74,128.71,11.4578]
[1725823290003,3.107,128.75,128.72,8.35]
[1725823291202,3.1072,128.74,128.71,3.1078]
[1725823291401,3.1072,128.74,128.71,11.4578]
[1725823291805,3.78904428,128.73,128.68,7.0665]
[1725823291998,12.15390024,128.76,128.69,8.35]
[1725823292603,3.1076,128.73,128.69,11.4583]
[1725823293312,12.15390024,128.76,128.69,8.35]
[1725823293708,8.35,128.75,128.69,8.35]
[1725823294506,12.26577965,128.75,128.69,8.35]
[1725823295712,3.1077,128.72,128.69,8.35]
[1725823298111,12.26577965,128.75,128.69,8.35]
[1725823298310,12.26577965,128.75,128.68,10.9694]
[1725823299108,8.35,128.73,128.67,8.35]
[1725823299312,3.108,128.71,128.67,8.35]
[1725823300009,12.26577965,128.75,128.7,8.35]
[1725823300213,8.35,128.75,128.7,8.35]
[1725823300514,3.1075,128.73,128.7,8.35]
[1725823303807,3.1075,128.73,128.69,3.1083]
[1725823303808,3.1077,128.72,128.69,3.1083]
[1725823304001,3.1077,128.72,128.69,11.4583]
[1725823304599,8.35,128.75,128.7,3.1081]
[1725823304600,3.1075,128.73,128.7,3.1081]
[1725823305914,3.1075,128.73,128.69,11.4583]
[1725823306114,3.1075,128.73,128.69,8.35]
[1725823307317,3.1075,128.73,128.7,3.108]
[1725823308720,3.1075,128.73,128.69,11.4582]
[1725823310815,3.1075,128.73,128.69,3.1082]
[1725823311018,8.35,128.74,128.69,3.1082]
[1725823311216,8.35,128.74,128.68,3.1085]
[1725823311818,3.1079,128.71,128.68,3.1085]
[1725823316715,3.1079,128.71,128.67,14.1338]
[1725823318725,3.1079,128.71,128.68,11.4586]
[1725823319819,3.1077,128.72,128.68,11.4586]
[1725823320026,3.1077,128.72,128.69,3.1083]
[1725823320428,3.1075,128.73,128.69,3.1083]
[1725823321525,3.1078,128.72,128.68,3.1086]
[1725823321722,8.35,128.74,128.68,3.1086]
[1725823321919,8.35,128.74,128.67,11.0251]
[1725823321920,8.35,128.73,128.67,2.6751]
[1725823322231,3.1082,128.7,128.67,2.6751]
[1725823324927,3.1084,128.69,128.67,2.6751]
[1725823325226,8.35,128.7,128.64,8.35]
[1725823325422,8.35,128.7,128.6,2.6065]
[1725823325734,8.35,128.69,128.62,8.35]
[1725823325936,8.35,128.64,128.55,3.88970931]
[1725823326127,8.35,128.64,128.56,3.8992]
[1725823326326,3.1099,128.63,128.58,11.4608]
[1725823326534,8.35,128.64,128.58,11.4608]
[1725823327224,8.35,128.64,128.56,7.73139337]
[1725823327225,8.35,128.63,128.56,7.73139337]
[1725823327431,8.35,128.63,128.56,3.8992]
[1725823327629,8.35,128.61,128.55,8.35]
[1725823327833,3.111,128.59,128.55,8.35]
[1725823328222,8.35,128.6,128.5,4.0542]
[1725823328427,3.1112,128.58,128.54,8.35]
[1725823328626,8.35,128.61,128.55,8.35]
[1725823329134,8.35,128.61,128.5,4.0542]
[1725823329339,8.35,128.61,128.54,8.35]
[1725823329539,3.1108,128.59,128.5,4.0542]
[1725823329735,3.1108,128.59,128.54,8.35]
[1725823330135,8.35,128.59,128.53,8.35]
[1725823330341,8.35,128.59,128.5,4.0542]
[1725823330342,8.35,128.57,128.5,4.0542]
[1725823330640,8.35,128.57,128.52,8.35]
[1725823330835,3.1114,128.57,128.52,11.4623]
[1725823331037,3.1114,128.57,128.53,8.35]
[1725823331641,3.111,128.58,128.53,11.4621]
[1725823331831,4.0928,128.62,128.44,205.24716795]
[1725823331832,8.35,128.55,128.44,205.24716795]
[1725823332039,8.35,128.54,128.48,8.35]
[1725823332240,8.35,128.54,128.45,4.0813]
[1725823332536,8.35,128.54,128.47,8.35]
[1725823332740,3.1123,128.53,128.48,3.1133]
[1725823333345,3.1123,128.53,128.47,8.35]
[1725823333542,3.1123,128.53,128.48,3.1134]
[1725823333744,3.1123,128.53,128.48,8.35]
[1725823334043,1.0,128.57,128.52,8.35]
[1725823334346,4.0928,128.62,128.52,8.35]
[1725823334347,3.1117,128.56,128.52,8.35]
[1725823336840,3.1117,128.56,128.52,11.4624]
[1725823337245,3.1117,128.56,128.52,8.35]
[1725823337442,3.1118,128.55,128.51,11.4625]
[1725823338043,8.35,128.57,128.51,11.4625]
[1725823338044,3.1116,128.56,128.51,11.4625]
[1725823339247,3.1116,128.56,128.51,3.1125]
[1725823339448,8.35,128.58,128.49,3.88811079]
[1725823339749,12.26534391,128.58,128.45,4.0813]
[1725823340046,12.26534391,128.58,128.52,8.35]
[1725823340347,12.26534391,128.58,128.45,7.98652875]
[1725823340552,8.35,128.57,128.45,7.98652875]
[1725823340847,12.26534391,128.58,128.51,8.35]
[1725823341144,3.1121,128.54,128.45,7.98652875]
[1725823341343,12.26534391,128.58,128.51,8.35]
[1725823341743,3.1115,128.56,128.52,3.1123]
[1725823342150,4.0928,128.62,128.54,8.35]